lending/lending_fUSD_20240219
["ID","MTS","AMOUNT","RATE_DAILY","PERIOD"]
[314484845,1708375938743,-685.61,0.00047671,30]
[314484846,1708375938752,-532.1476294,0.00047671,30]
[314484847,1708375938761,-3450.55,0.00047671,30]
[314484848,1708375938770,-637.22,0.00047671,30]
[314484849,1708375938779,-1315.63,0.00047671,30]
[314484850,1708375938788,-1303.35,0.00047671,30]
[314484851,1708375938797,-500.0,0.00047671,30]
[314484852,1708375938806,-1018.49,0.00047671,30]
[314484853,1708375938815,-1826.87,0.00047671,30]
[314484854,1708375938824,-500.0,0.00047671,30]
[314484855,1708375938833,-500.0,0.00047671,30]
[314484856,1708375938843,-2574.94,0.00047671,30]
[314484857,1708375938852,-1011.56,0.00047671,30]
[314484858,1708375938860,-1602.06,0.00047671,30]
[314484859,1708375938869,-1629.15,0.00047671,30]
[314484860,1708375938878,-529.39519702,0.00047671,30]
[314484861,1708375938887,-2466.37,0.00047671,30]
[314484862,1708375938897,-723.21,0.00047671,30]
[314484863,1708375938906,-500.0,0.00047671,30]
[314484864,1708375938915,-163.77965983,0.00047695,30]
[314484865,1708375938924,-300.00000099,0.000477,30]
[314484866,1708375938933,-150.0,0.00047744,7]
[314484867,1708375938942,-150.0,0.00047744,7]
[314484868,1708375938951,-2000.0,0.0004776,5]
[314484869,1708375938960,-2000.0,0.0004776,5]
[314484870,1708375938969,-2000.0,0.0004776,5]
[314484871,1708375938978,-2000.0,0.0004776,5]
[314484872,1708375938987,-795.16,0.00047781,15]
[314484873,1708375938995,-795.16,0.00047781,15]
[314484874,1708375939005,-289.62062,0.0004779,39]
[314484875,1708375939013,-8739.6,0.000478,120]
[314484876,1708375939022,-153.03,0.000478,5]
[314484877,1708375939031,-153.03,0.000478,5]
[314484878,1708375939040,-1616.52,0.000478,5]
[314484879,1708375939049,-1616.52,0.000478,5]
[314484880,1708375939057,-1616.52,0.000478,5]
[314484881,1708375939067,-1616.52,0.000478,5]
[314484882,1708375939076,-1616.52,0.000478,5]
[314484883,1708375939087,-1616.52,0.000478,5]
[314484884,1708375939101,-1616.52,0.000478,5]
[314484885,1708375939110,-1616.52,0.000478,5]
[314484886,1708375939119,-1616.52,0.000478,5]
[314484887,1708375939128,-1616.52,0.000478,5]
[314484888,1708375939139,-1616.52,0.000478,5]
[314484889,1708375939148,-1616.52,0.000478,5]
[314484890,1708375939157,-1616.52,0.000478,5]
[314484891,1708375939168,-1616.52,0.000478,5]
[314484892,1708375939179,-1616.52,0.000478,5]
[314484893,1708375939188,-1616.52,0.000478,5]
[314484894,1708375939197,-1616.52,0.000478,5]
[314484895,1708375939207,-1616.52,0.000478,5]
[314484896,1708375939216,-1616.52,0.000478,5]
[314484897,1708375939226,-1616.52,0.000478,5]
[314484898,1708375939235,-200.0,0.000478,25]
[314484899,1708375939244,-151.0,0.000478,19]
[314484900,1708375939252,-154.0583357,0.00047806,30]
[314484901,1708375939261,-693.36,0.00047814,2]
[314484902,1708375939271,-150.06910512,0.00047825,30]
[314484903,1708375939280,-153.28144718,0.00047856,30]
[314484904,1708375939290,-167.60443462,0.00047879,30]
[314484905,1708375939299,-2537.997902,0.0004788,30]
[314484906,1708375939308,-5646.009906,0.0004788,30]
[314484907,1708375939316,-1441.436346,0.0004788,30]
[314484908,1708375939325,-8469.01486,0.0004788,30]
[314484909,1708375939334,-9456.964965,0.0004788,30]
[314484910,1708375939343,-3115.907425,0.0004788,30]
[314484911,1708375939353,-16435.715615,0.0004788,30]
[314484912,1708375939362,-12500.159178,0.0004788,30]
[314484913,1708375939372,-24913.668467,0.0004788,30]
[314484914,1708375939381,-1270.352229,0.0004788,30]
[314484915,1708375939390,-1905.528344,0.0004788,30]
[314484916,1708375939400,-1717.99839,0.0004788,30]
[314484917,1708375939409,-3331.854358,0.0004788,30]
[314484918,1708375939419,-3561.320264,0.0004788,30]
[314484919,1708375939429,-8238.073413,0.0004788,30]
[314484920,1708375939439,-7629.810968,0.0004788,30]
[314484921,1708375939448,-6496.739529,0.0004788,30]
[314484922,1708375939458,-4278.865349,0.0004788,30]
[314484923,1708375939467,-223000.0001651,0.0004789,7]
[314484924,1708375939477,-306.2750614,0.000479,8]
[314484925,1708375939487,-306.2750614,0.000479,8]
[314484926,1708375939496,-306.2750614,0.000479,8]
[314484927,1708375939505,-306.2750614,0.000479,8]
[314484928,1708375939515,-919.5895588,0.000479,8]
[314484929,1708375939524,-919.5895588,0.000479,8]
[314484930,1708375939533,-919.5895588,0.000479,8]
[314484931,1708375939542,-919.5895588,0.000479,8]
[314484932,1708375939551,-919.5895588,0.000479,8]
[314484933,1708375939559,-300.0,0.000479,8]
[314484934,1708375939568,-356.849684,0.000479,8]
[314484935,1708375939578,-155.64402528,0.00047904,43]
[314484936,1708375939587,-723.3690027,0.00047909,2]
[314484937,1708375939596,-96244.9201982,0.00047909,2]
[314484938,1708375939606,-7382.1739349,0.00047909,2]
[314484939,1708375939615,-2668.3570454,0.00047909,2]
[314484940,1708375939624,-723.3690027,0.00047912,2]
[314484941,1708375939633,-69500.2754314,0.00047912,2]
[314484942,1708375939643,-702.8249853,0.00047912,2]
[314484943,1708375939653,-5336.502084,0.00047912,2]
[314484944,1708375939663,-1928.9294806,0.00047912,2]
[314484945,1708375939672,-200000.0,0.00047942,30]
[314484946,1708375939682,-241.88879428,0.00047942,30]
[314484947,1708375939691,-206.53319987,0.00047945,2]
[314484948,1708375939701,-16646.48614904,0.00047945,2]
[314484949,1708375939710,-500.0,0.00047945,30]
[314484950,1708375939719,-500.0,0.00047945,30]
[314484951,1708375939729,-500.0,0.00047945,30]
[314484952,1708375939738,-500.0,0.00047945,30]
[314484953,1708375939748,-500.0,0.00047945,30]
[314484954,1708375939757,-500.0,0.00047945,30]
[314484955,1708375939766,-500.0,0.00047945,30]
[314484956,1708375939776,-658.14,0.00047945,30]
[314484957,1708375939785,-500.0,0.00047945,30]
[314484958,1708375939795,-500.0,0.00047945,30]
[314484959,1708375939804,-500.0,0.00047945,30]
[314484960,1708375939815,-500.0,0.00047945,30]
[314484961,1708375939825,-500.0,0.00047945,30]
[314484962,1708375939834,-727.1,0.00047945,30]
[314484963,1708375939844,-500.0,0.00047945,30]
[314484964,1708375939854,-500.0,0.00047945,30]
[314484965,1708375939864,-500.0,0.00047945,30]
[314484966,1708375939874,-611.49,0.00047945,30]
[314484967,1708375939884,-500.0,0.00047945,30]
[314484968,1708375939894,-500.0,0.00047945,30]
[314484969,1708375939904,-500.0,0.00047945,30]
[314484970,1708375939913,-500.0,0.00047945,30]
[314484971,1708375939923,-500.0,0.00047945,30]
[314484972,1708375939933,-500.0,0.00047945,30]
[314484973,1708375939942,-500.0,0.00047945,30]
[314484974,1708375939952,-500.0,0.00047945,30]
[314484975,1708375939962,-642.69,0.00047945,30]
[314484976,1708375939972,-502.75,0.00047945,30]
[314484977,1708375939982,-500.0,0.00047945,30]
[314484978,1708375939992,-500.0,0.00047945,30]
[314484979,1708375940001,-500.0,0.00047945,30]
[314484980,1708375940011,-500.0,0.00047945,30]
[314484981,1708375940021,-500.0,0.00047945,30]
[314484982,1708375940031,-593.79609471,0.00047945,30]
[314484983,1708375940041,-500.0,0.00047945,30]
[314484984,1708375940050,-680.66,0.00047945,30]
[314484985,1708375940060,-500.0,0.00047945,30]
[314484986,1708375940070,-500.0,0.00047945,30]
[314484987,1708375940082,-534.7,0.00047945,30]
[314484988,1708375940097,-500.0,0.00047945,30]
[314484989,1708375940107,-673.61,0.00047945,30]
[314484990,1708375940117,-500.0,0.00047945,30]
[314484991,1708375940127,-500.0,0.00047945,30]
[314484992,1708375940138,-500.0,0.00047945,30]
[314484993,1708375940147,-500.0,0.00047945,30]
[314484994,1708375940157,-500.0,0.00047945,30]
[314484995,1708375940166,-500.0,0.00047945,30]
[314484996,1708375940177,-278.06816743,0.00047945,30]
[314484997,1708375940187,-546.31,0.00047945,30]
[314484998,1708375940197,-500.0,0.00047945,30]
[314484999,1708375940207,-500.0,0.00047945,30]
[314485000,1708375940217,-523.32584692,0.00047945,30]
[314485001,1708375940227,-500.0,0.00047945,30]
[314485002,1708375940236,-700.86,0.00047945,30]
[314485003,1708375940246,-500.0,0.00047945,30]
[314485004,1708375940256,-500.0,0.00047945,30]
[314485005,1708375940266,-500.0,0.00047945,30]
[314485006,1708375940276,-515.56,0.00047945,30]
[314485007,1708375940286,-500.0,0.00047945,30]
[314485008,1708375940296,-150.0,0.00047945,30]
[314485009,1708375940306,-500.0,0.00047945,30]
[314485010,1708375940317,-500.0,0.00047945,30]
[314485011,1708375940327,-500.0,0.00047945,30]
[314485012,1708375940337,-4230.46139861,0.00047945,30]
[314485013,1708375940347,-500.0,0.00047945,30]
[314485014,1708375940357,-500.0,0.00047945,30]
[314485015,1708375940367,-500.0,0.00047945,30]
[314485016,1708375940378,-683.1,0.00047945,30]
[314485017,1708375940388,-625.75997248,0.00047945,30]
[314485018,1708375940398,-500.0,0.00047945,30]
[314485019,1708375940409,-773.54,0.00047945,30]
[314485020,1708375940419,-500.0,0.00047945,30]
[314485021,1708375940429,-500.0,0.00047945,30]
[314485022,1708375940440,-500.0,0.00047945,30]
[314485023,1708375940450,-500.0,0.00047945,30]
[314485024,1708375940460,-500.0,0.00047945,30]
[314485025,1708375940470,-500.0,0.00047945,30]
[314485026,1708375940481,-500.0,0.00047945,30]
[314485027,1708375940491,-635.49,0.00047945,30]
[314485028,1708375940501,-605.14,0.00047945,30]
[314485029,1708375940511,-500.0,0.00047945,30]
[314485030,1708375940521,-500.0,0.00047945,30]
[314485031,1708375940531,-500.0,0.00047945,30]
[314485032,1708375940541,-500.0,0.00047945,30]
[314485033,1708375940551,-500.0,0.00047945,2]
[314485034,1708375940561,-500.0,0.00047945,30]
[314485035,1708375940571,-521.73,0.00047945,30]
[314485036,1708375940582,-500.0,0.00047945,30]
[314485037,1708375940592,-500.0,0.00047945,30]
[314485038,1708375940602,-500.0,0.00047945,30]
[314485039,1708375940612,-500.0,0.00047945,30]
[314485040,1708375940622,-500.0,0.00047945,30]
[314485041,1708375940632,-500.0,0.00047945,30]
[314485042,1708375940642,-500.0,0.00047945,30]
[314485043,1708375940652,-500.0,0.00047945,30]
[314485044,1708375940662,-551.15,0.00047945,30]
[314485045,1708375940672,-500.0,0.00047945,30]
[314485046,1708375940682,-500.0,0.00047945,30]
[314485047,1708375940692,-500.0,0.00047945,30]
[314485048,1708375940702,-533.00058278,0.00047945,30]
[314485049,1708375940712,-500.0,0.00047945,30]
[314485050,1708375940722,-500.0,0.00047945,30]
[314485051,1708375940731,-687.19,0.00047945,30]
[314485052,1708375940741,-483.78357924,0.00047945,30]
[314485053,1708375940751,-606.33,0.00047945,30]
[314485054,1708375940761,-500.0,0.00047945,30]
[314485055,1708375940771,-497.4414515,0.00047945,30]
[314485056,1708375940781,-500.0,0.00047945,30]
[314485057,1708375940790,-500.0,0.00047945,30]
[314485058,1708375940800,-796.73,0.00047945,30]
[314485059,1708375940810,-726.97,0.00047945,30]
[314485060,1708375940821,-500.0,0.00047945,30]
[314485061,1708375940831,-520.8946004,0.00047945,30]
[314485062,1708375940842,-500.0,0.00047945,30]
[314485063,1708375940852,-500.0,0.00047945,30]
[314485064,1708375940861,-500.0,0.00047945,30]
[314485065,1708375940871,-515.89747049,0.00047945,30]
[314485066,1708375940881,-500.0,0.00047945,30]
[314485067,1708375940891,-500.0,0.00047945,30]
[314485068,1708375940901,-500.0,0.00047945,30]
[314485069,1708375940911,-646.91,0.00047945,30]
[314485070,1708375940922,-834.56,0.00047945,30]
[314485071,1708375940931,-500.0,0.00047945,30]
[314485072,1708375940942,-664.56,0.00047945,30]
[314485073,1708375940951,-500.0,0.00047945,30]
[314485074,1708375940961,-500.0,0.00047945,30]
[314485075,1708375940971,-500.0,0.00047945,30]
[314485076,1708375940981,-500.0,0.00047945,30]
[314485077,1708375940991,-500.0,0.00047945,30]
[314485078,1708375941001,-509.34963051,0.00047945,30]
[314485079,1708375941012,-500.0,0.00047945,30]
[314485080,1708375941024,-508.39602496,0.00047945,30]
[314485081,1708375941036,-500.0,0.00047945,30]
[314485082,1708375941046,-500.0,0.00047945,30]
[314485083,1708375941058,-500.0,0.00047945,30]
[314485084,1708375941069,-500.0,0.00047945,30]
[314485085,1708375941084,-500.0,0.00047945,30]
[314485086,1708375941099,-500.0,0.00047945,30]
[314485087,1708375941113,-500.0,0.00047945,30]
[314485088,1708375941124,-500.0,0.00047945,30]
[314485089,1708375941135,-500.0,0.00047945,30]
[314485090,1708375941146,-500.0,0.00047945,30]
[314485091,1708375941156,-500.0,0.00047945,30]
[314485092,1708375941167,-500.0,0.00047945,30]
[314485093,1708375941181,-500.0,0.00047945,30]
[314485094,1708375941192,-558.22,0.00047945,30]
[314485095,1708375941202,-738.02,0.00047945,30]
[314485096,1708375941213,-500.0,0.00047945,30]
[314485097,1708375941224,-500.0,0.00047945,30]
[314485098,1708375941235,-500.0,0.00047945,30]
[314485099,1708375941246,-534.66,0.00047945,30]
[314485100,1708375941257,-500.0,0.00047945,30]
[314485101,1708375941267,-1457.69,0.00047945,30]
[314485102,1708375941277,-614.77301057,0.00047945,30]
[314485103,1708375941288,-500.0,0.00047945,30]
[314485104,1708375941299,-500.0,0.00047945,30]
[314485105,1708375941310,-500.0,0.00047945,30]
[314485106,1708375941320,-500.0,0.00047945,30]
[314485107,1708375941330,-907.08,0.00047945,30]
[314485108,1708375941341,-500.0,0.00047945,30]
[314485109,1708375941350,-500.0,0.00047945,30]
[314485110,1708375941361,-1101.19,0.00047945,30]
[314485111,1708375941371,-500.0,0.00047945,30]
[314485112,1708375941381,-500.0,0.00047945,30]
[314485113,1708375941392,-500.0,0.00047945,30]
[314485114,1708375941403,-724.1,0.00047945,30]
[314485115,1708375941414,-500.0,0.00047945,30]
[314485116,1708375941425,-224.59936426,0.00047945,30]
[314485117,1708375941437,-500.0,0.00047945,30]
[314485118,1708375941448,-500.0,0.00047945,30]
[314485119,1708375941459,-584.96,0.00047945,30]
[314485120,1708375941470,-500.0,0.00047945,30]
[314485121,1708375941481,-588.60035341,0.00047945,30]
[314485122,1708375941491,-500.0,0.00047945,30]
[314485123,1708375941501,-794.09,0.00047945,30]
[314485124,1708375941511,-500.0,0.00047945,30]
[314485125,1708375941522,-500.0,0.00047945,30]
[314485126,1708375941532,-500.0,0.00047945,30]
[314485127,1708375941544,-596.62,0.00047945,30]
[314485128,1708375941554,-980.76,0.00047945,30]
[314485129,1708375941566,-500.0,0.00047945,30]
[314485130,1708375941576,-725.56,0.00047945,30]
[314485131,1708375941587,-736.53,0.00047945,30]
[314485132,1708375941598,-500.0,0.00047945,30]
[314485133,1708375941609,-681.49,0.00047945,30]
[314485134,1708375941619,-500.0,0.00047945,30]
[314485135,1708375941869,-500.0,0.00047945,30]
[314485136,1708375941884,-529.85,0.00047945,30]
[314485137,1708375941895,-500.0,0.00047945,30]
[314485138,1708375941904,-611.77,0.00047945,30]
[314485139,1708375941913,-500.0,0.00047945,30]
[314485140,1708375941922,-593.46,0.00047945,30]
[314485141,1708375941932,-481.75944542,0.00047945,30]
[314485142,1708375941941,-623.19,0.00047945,30]
[314485143,1708375941950,-546.41320685,0.00047945,30]
[314485144,1708375941960,-767.38,0.00047945,30]
[314485145,1708375941969,-1194.83,0.00047945,30]
[314485146,1708375941979,-500.0,0.00047945,30]
[314485147,1708375941988,-658.06,0.00047945,30]
[314485148,1708375941998,-500.0,0.00047945,30]
[314485149,1708375942007,-858.95,0.00047945,30]
[314485150,1708375942017,-500.0,0.00047945,30]
[314485151,1708375942026,-500.0,0.00047945,30]
[314485152,1708375942035,-504.56289681,0.00047945,30]
[314485153,1708375942045,-500.0,0.00047945,30]
[314485154,1708375942054,-500.0,0.00047945,30]
[314485155,1708375942065,-1684.76,0.00047945,30]
[314485156,1708375942074,-500.0,0.00047945,30]
[314485157,1708375942085,-1412.31,0.00047945,30]
[314485158,1708375942100,-500.0,0.00047945,30]
[314485159,1708375942109,-2000.0,0.00047945,30]
[314485160,1708375942119,-500.0,0.00047945,30]
[314485161,1708375942129,-1438.64,0.00047945,30]
[314485162,1708375942139,-500.0,0.00047945,30]
[314485163,1708375942149,-500.0,0.00047945,30]
[314485164,1708375942158,-525.84,0.00047945,30]
[314485165,1708375942168,-500.0,0.00047945,30]
[314485166,1708375942177,-500.0,0.00047945,30]
[314485167,1708375942186,-500.0,0.00047945,30]
[314485168,1708375942195,-519.41,0.00047945,30]
[314485169,1708375942205,-500.0,0.00047945,30]
[314485170,1708375942215,-500.0,0.00047945,30]
[314485171,1708375942224,-500.0,0.00047945,30]
[314485172,1708375942234,-1430.29,0.00047945,30]
[314485173,1708375942243,-500.0,0.00047945,30]
[314485174,1708375942251,-500.0,0.00047945,30]
[314485175,1708375942261,-500.0,0.00047945,30]
[314485176,1708375942270,-500.0,0.00047945,30]
[314485177,1708375942280,-500.0,0.00047945,30]
[314485178,1708375942290,-500.0,0.00047945,30]
[314485179,1708375942299,-500.0,0.00047945,30]
[314485180,1708375942309,-500.0,0.00047945,30]
[314485181,1708375942319,-1105.45,0.00047945,30]
[314485182,1708375942329,-1019.92,0.00047945,30]
[314485183,1708375942338,-500.0,0.00047945,30]
[314485184,1708375942347,-500.0,0.00047945,30]
[314485185,1708375942356,-500.0,0.00047945,30]
[314485186,1708375942366,-500.0,0.00047945,30]
[314485187,1708375942375,-523.08703651,0.00047945,30]
[314485188,1708375942385,-592.36,0.00047945,30]
[314485189,1708375942394,-500.0,0.00047945,30]
[314485190,1708375942405,-500.0,0.00047945,30]
[314485191,1708375942414,-500.0,0.00047945,30]
[314485192,1708375942424,-1079.31,0.00047945,30]
[314485193,1708375942432,-500.0,0.00047945,30]
[314485194,1708375942442,-500.0,0.00047945,30]
[314485195,1708375942452,-500.0,0.00047945,30]
[314485196,1708375942461,-1238.71,0.00047945,30]
[314485197,1708375942471,-529.32751428,0.00047945,30]
[314485198,1708375942480,-500.0,0.00047945,30]
[314485199,1708375942489,-500.0,0.00047945,30]
[314485200,1708375942499,-1695.98,0.00047945,2]
[314485201,1708375942508,-512.64,0.00047945,30]
[314485202,1708375942518,-500.0,0.00047945,30]
[314485203,1708375942527,-500.0,0.00047945,30]
[314485204,1708375942536,-500.0,0.00047945,30]
[314485205,1708375942546,-500.0,0.00047945,30]
[314485206,1708375942555,-500.0,0.00047945,2]
[314485207,1708375942566,-626.83,0.00047945,30]
[314485208,1708375942576,-500.0,0.00047945,30]
[314485209,1708375942585,-500.0,0.00047945,30]
[314485210,1708375942595,-1225.04,0.00047945,30]
[314485211,1708375942605,-782.42,0.00047945,30]
[314485212,1708375942614,-500.0,0.00047945,30]
[314485213,1708375942623,-500.0,0.00047945,30]
[314485214,1708375942633,-500.0,0.00047945,2]
[314485215,1708375942643,-1117.49,0.00047945,30]
[314485216,1708375942652,-540.29,0.00047945,30]
[314485217,1708375942662,-500.0,0.00047945,30]
[314485218,1708375942672,-500.0,0.00047945,30]
[314485219,1708375942681,-681.37,0.00047945,30]
[314485220,1708375942691,-500.0,0.00047945,30]
[314485221,1708375942700,-1341.5,0.00047945,30]
[314485222,1708375942710,-500.0,0.00047945,30]
[314485223,1708375942719,-500.0,0.00047945,30]
[314485224,1708375942729,-500.0,0.00047945,30]
[314485225,1708375942738,-834.82,0.00047945,30]
[314485226,1708375942747,-500.0,0.00047945,30]
[314485227,1708375942757,-526.87,0.00047945,30]
[314485228,1708375942766,-567.2,0.00047945,30]
[314485229,1708375942776,-500.0,0.00047945,30]
[314485230,1708375942785,-500.0,0.00047945,30]
[314485231,1708375942794,-500.0,0.00047945,30]
[314485232,1708375942804,-500.0,0.00047945,30]
[314485233,1708375942815,-500.0,0.00047945,30]
[314485234,1708375942825,-500.0,0.00047945,30]
[314485235,1708375942835,-1134.32,0.00047945,30]
[314485236,1708375942845,-500.0,0.00047945,30]
[314485237,1708375942855,-826.41,0.00047945,30]
[314485238,1708375942864,-500.0,0.00047945,30]
[314485239,1708375942874,-1378.15,0.00047945,30]
[314485240,1708375942885,-1170.65,0.00047945,30]
[314485241,1708375942895,-1602.18,0.00047945,30]
[314485242,1708375942905,-500.0,0.00047945,30]
[314485243,1708375942915,-910.93,0.00047945,30]
[314485244,1708375942925,-730.4,0.00047945,30]
[314485245,1708375942935,-1022.68,0.00047945,30]
[314485246,1708375942944,-619.27,0.00047945,30]
[314485247,1708375942954,-500.0,0.00047945,30]
[314485248,1708375942964,-1234.7,0.00047945,30]
[314485249,1708375942973,-1015.68,0.00047945,30]
[314485250,1708375942983,-500.0,0.00047945,30]
[314485251,1708375942992,-296.34981373,0.00047945,30]
[314485252,1708375943002,-500.0,0.00047945,30]
[314485253,1708375943012,-500.0,0.00047945,30]
[314485254,1708375943021,-500.0,0.00047945,30]
[314485255,1708375943031,-640.09,0.00047945,30]
[314485256,1708375943040,-1097.36,0.00047945,30]
[314485257,1708375943049,-500.0,0.00047945,30]
[314485258,1708375943058,-500.0,0.00047945,30]
[314485259,1708375943069,-500.0,0.00047945,30]
[314485260,1708375943079,-586.6,0.00047945,30]
[314485261,1708375943089,-800.0,0.00047945,2]
[314485262,1708375943099,-500.0,0.00047945,30]
[314485263,1708375943110,-500.0,0.00047945,30]
[314485264,1708375943119,-500.0,0.00047945,30]
[314485265,1708375943129,-500.0,0.00047945,30]
[314485266,1708375943139,-500.0,0.00047945,30]
[314485267,1708375943149,-500.0,0.00047945,30]
[314485268,1708375943159,-989.09,0.00047945,30]
[314485269,1708375943168,-500.0,0.00047945,30]
[314485270,1708375943179,-1358.39,0.00047945,30]
[314485271,1708375943189,-500.0,0.00047945,30]
[314485272,1708375943198,-546.18,0.00047945,30]
[314485273,1708375943208,-500.0,0.00047945,30]
[314485274,1708375943217,-1072.42,0.00047945,30]
[314485275,1708375943226,-500.0,0.00047945,30]
[314485276,1708375943235,-1139.87,0.00047945,30]
[314485277,1708375943245,-500.0,0.00047945,30]
[314485278,1708375943254,-500.0,0.00047945,30]
[314485279,1708375943263,-653.92,0.00047945,30]
[314485280,1708375943272,-1319.89,0.00047945,30]
[314485281,1708375943282,-500.0,0.00047945,30]
[314485282,1708375943291,-500.0,0.00047945,30]
[314485283,1708375943300,-1138.49,0.00047945,30]
[314485284,1708375943310,-500.0,0.00047945,30]
[314485285,1708375943319,-500.0,0.00047945,30]
[314485286,1708375943328,-500.0,0.00047945,30]
[314485287,1708375943337,-500.0,0.00047945,30]
[314485288,1708375943346,-701.86,0.00047945,30]
[314485289,1708375943356,-500.0,0.00047945,30]
[314485290,1708375943365,-821.67,0.00047945,30]
[314485291,1708375943375,-546.51,0.00047945,30]
[314485292,1708375943384,-500.0,0.00047945,30]
[314485293,1708375943394,-500.0,0.00047945,70]
[314485294,1708375943404,-500.0,0.00047945,30]
[314485295,1708375943414,-791.29,0.00047945,30]
[314485296,1708375943423,-555.68,0.00047945,30]
[314485297,1708375943433,-500.0,0.00047945,30]
[314485298,1708375943443,-500.0,0.00047945,30]
[314485299,1708375943453,-500.0,0.00047945,30]
[314485300,1708375943462,-500.0,0.00047945,30]
[314485301,1708375943472,-1096.08,0.00047945,30]
[314485302,1708375943481,-517.1,0.00047945,30]
[314485303,1708375943490,-817.72,0.00047945,30]
[314485304,1708375943499,-500.0,0.00047945,30]
[314485305,1708375943508,-1231.27,0.00047945,30]
[314485306,1708375943517,-882.89,0.00047945,30]
[314485307,1708375943527,-500.0,0.00047945,30]
[314485308,1708375943536,-500.0,0.00047945,30]
[314485309,1708375943545,-633.3,0.00047945,30]
[314485310,1708375943554,-500.0,0.00047945,30]
[314485311,1708375943565,-500.0,0.00047945,30]
[314485312,1708375943574,-1075.43,0.00047945,30]
[314485313,1708375943584,-1081.85,0.00047945,30]
[314485314,1708375943593,-500.0,0.00047945,30]
[314485315,1708375943603,-500.0,0.00047945,30]
[314485316,1708375943612,-569.42,0.00047945,30]
[314485317,1708375943622,-1092.13,0.00047945,30]
[314485318,1708375943632,-500.0,0.00047945,30]
[314485319,1708375943642,-500.0,0.00047945,30]
[314485320,1708375943651,-537.66,0.00047945,30]
[314485321,1708375943661,-473.75974268,0.00047945,30]
[314485322,1708375943670,-500.0,0.00047945,30]
[314485323,1708375943680,-500.0,0.00047945,30]
[314485324,1708375943689,-686.43,0.00047945,30]
[314485325,1708375943699,-988.65,0.00047945,30]
[314485326,1708375943709,-500.0,0.00047945,30]
[314485327,1708375943718,-500.0,0.00047945,30]
[314485328,1708375943727,-500.0,0.00047945,30]
[314485329,1708375943736,-1169.05,0.00047945,30]
[314485330,1708375943746,-500.0,0.00047945,30]
[314485331,1708375943755,-696.77,0.00047945,30]
[314485332,1708375943765,-1548.35,0.00047945,30]
[314485333,1708375943774,-500.0,0.00047945,30]
[314485334,1708375943784,-823.36,0.00047945,30]
[314485335,1708375943793,-500.0,0.00047945,30]
[314485336,1708375943803,-500.0,0.00047945,30]
[314485337,1708375943813,-500.0,0.00047945,30]
[314485338,1708375943822,-879.35,0.00047945,30]
[314485339,1708375943831,-500.0,0.00047945,30]
[314485340,1708375943840,-971.92,0.00047945,30]
[314485341,1708375943849,-1247.38,0.00047945,30]
[314485342,1708375943859,-508.94184691,0.00047945,30]
[314485343,1708375943868,-1398.42,0.00047945,30]
[314485344,1708375943877,-500.0,0.00047945,30]